fUSD/lending_fUSD_20260606
["ID","MTS","AMOUNT","RATE_DAILY","PERIOD"]
[424300926,1780757458000,-1244.0,0.00027123,2]
[424300936,1780757458000,-515.0,0.00027123,2]
[424300925,1780757458000,-515.0,0.00027123,2]
[424300932,1780757458000,-515.0,0.00027123,2]
[424300928,1780757458000,-1244.0,0.00027123,2]
[424300929,1780757458000,-1244.0,0.00027123,2]
[424300937,1780757458000,-515.0,0.00027123,2]
[424300933,1780757458000,-1244.0,0.00027123,2]
[424300930,1780757458000,-515.0,0.00027123,2]
[424300927,1780757458000,-515.0,0.00027123,2]
[424300934,1780757458000,-515.0,0.00027123,2]
[424300931,1780757458000,-1244.0,0.00027123,2]
[424300935,1780757458000,-1244.0,0.00027123,2]
[424300939,1780757458000,-515.0,0.00027123,2]
[424300940,1780757458000,-515.0,0.00027123,2]
[424300946,1780757458000,-837.0,0.00027123,2]
[424300944,1780757458000,-515.0,0.00027123,2]
[424300941,1780757458000,-515.0,0.00027123,2]
[424300938,1780757458000,-1244.0,0.00027123,2]
[424300942,1780757458000,-1244.0,0.00027123,2]
[424300945,1780757458000,-837.0,0.00027123,2]
[424300951,1780757458000,-837.0,0.00027123,2]
[424300950,1780757458000,-515.0,0.00027123,2]
[424300949,1780757458000,-837.0,0.00027123,2]
[424300947,1780757458000,-500.0,0.00027123,2]
[424300948,1780757458000,-837.0,0.00027123,2]
[424300953,1780757458000,-500.0,0.00027123,2]
[424300954,1780757458000,-1244.0,0.00027123,2]
[424300892,1780757458000,-500.0,0.00027123,2]
[424300924,1780757458000,-1244.0,0.00027123,2]
[424300920,1780757458000,-1244.0,0.00027123,2]
[424300952,1780757458000,-500.0,0.00027123,2]
[424300921,1780757458000,-1104.0953843,0.00027123,2]
[424300887,1780757458000,-500.0,0.00027123,2]
[424300890,1780757458000,-500.0,0.00027123,2]
[424300888,1780757458000,-500.0,0.00027123,2]
[424300886,1780757458000,-500.0,0.00027123,2]
[424300894,1780757458000,-1098.0,0.00027123,2]
[424300889,1780757458000,-500.0,0.00027123,2]
[424300896,1780757458000,-359.92465112,0.00027123,2]
[424300893,1780757458000,-500.0,0.00027123,2]
[424300919,1780757458000,-515.0,0.00027123,2]
[424300901,1780757458000,-500.0,0.00027123,2]
[424300909,1780757458000,-1244.0,0.00027123,2]
[424300899,1780757458000,-500.0,0.00027123,2]
[424300910,1780757458000,-1244.0,0.00027123,2]
[424300911,1780757458000,-1244.0,0.00027123,2]
[424300902,1780757458000,-500.0,0.00027123,2]
[424300908,1780757458000,-1244.0,0.00027123,2]
[424300904,1780757458000,-500.0,0.00027123,2]
[424300913,1780757458000,-515.0,0.00027123,2]
[424300900,1780757458000,-500.0,0.00027123,2]
[424300923,1780757458000,-515.0,0.00027123,2]
[424300922,1780757458000,-515.0,0.00027123,2]
[424300918,1780757458000,-1244.0,0.00027123,2]
[424300912,1780757458000,-1244.0,0.00027123,2]
[424300914,1780757458000,-1244.0,0.00027123,2]
[424300917,1780757458000,-515.0,0.00027123,2]
[424300915,1780757458000,-515.0,0.00027123,2]
[424300907,1780757458000,-449.71848685,0.00027123,2]
[424300905,1780757458000,-1098.0,0.00027123,2]
[424300906,1780757458000,-500.0,0.00027123,2]
[424300903,1780757458000,-500.0,0.00027123,2]
[424300916,1780757458000,-1244.0,0.00027123,2]
[424300997,1780757459000,-565.0,0.00027123,2]
[424300995,1780757459000,-300.0,0.00027123,14]
[424301004,1780757459000,-565.0,0.00027123,2]
[424300993,1780757459000,-565.0,0.00027123,2]
[424301003,1780757459000,-565.0,0.00027123,2]
[424300986,1780757459000,-837.0,0.00027123,2]
[424300994,1780757459000,-565.0,0.00027123,2]
[424300992,1780757459000,-565.0,0.00027123,2]
[424300988,1780757459000,-536.50885793,0.00027123,2]
[424300983,1780757459000,-837.0,0.00027123,2]
[424300987,1780757459000,-1252.05631674,0.00027123,2]
[424301000,1780757459000,-565.0,0.00027123,2]
[424301002,1780757459000,-565.0,0.00027123,2]
[424301019,1780757459000,-197.22054503,0.00027123,2]
[424300996,1780757459000,-565.0,0.00027123,2]
[424301001,1780757459000,-565.0,0.00027123,2]
[424301005,1780757459000,-565.0,0.00027123,2]
[424300999,1780757459000,-565.0,0.00027123,2]
[424301007,1780757459000,-565.0,0.00027123,2]
[424301006,1780757459000,-565.0,0.00027123,2]
[424301015,1780757459000,-565.0,0.00027123,2]
[424301008,1780757459000,-565.0,0.00027123,2]
[424301010,1780757459000,-500.0,0.00027123,2]
[424301016,1780757459000,-565.0,0.00027123,2]
[424301009,1780757459000,-210.61267653,0.00027123,2]
[424301014,1780757459000,-263.05807639,0.00027123,2]
[424301018,1780757459000,-150.0,0.00027123,2]
[424300984,1780757459000,-1244.0,0.00027123,2]
[424300998,1780757459000,-565.0,0.00027123,2]
[424300980,1780757459000,-1244.0,0.00027123,2]
[424300976,1780757459000,-1244.0,0.00027123,2]
[424300982,1780757459000,-515.0,0.00027123,2]
[424301017,1780757459000,-150.0,0.00027123,2]
[424300961,1780757459000,-837.0,0.00027123,2]
[424300964,1780757459000,-500.0,0.00027123,2]
[424300963,1780757459000,-837.0,0.00027123,2]
[424300956,1780757459000,-500.0,0.00027123,2]
[424300962,1780757459000,-500.0,0.00027123,2]
[424300958,1780757459000,-500.0,0.00027123,2]
[424300957,1780757459000,-837.0,0.00027123,2]
[424300959,1780757459000,-837.0,0.00027123,2]
[424300960,1780757459000,-500.0,0.00027123,2]
[424300955,1780757459000,-837.0,0.00027123,2]
[424300966,1780757459000,-515.0,0.00027123,2]
[424300965,1780757459000,-837.0,0.00027123,2]
[424300969,1780757459000,-1244.0,0.00027123,2]
[424300967,1780757459000,-500.0,0.00027123,2]
[424300968,1780757459000,-837.0,0.00027123,2]
[424300971,1780757459000,-837.0,0.00027123,2]
[424300977,1780757459000,-837.0,0.00027123,2]
[424300972,1780757459000,-837.0,0.00027123,2]
[424300970,1780757459000,-224.92811501,0.00027123,2]
[424300975,1780757459000,-515.0,0.00027123,2]
[424300973,1780757459000,-837.0,0.00027123,2]
[424300974,1780757459000,-837.0,0.00027123,2]
[424300979,1780757459000,-515.0,0.00027123,2]
[424300989,1780757459000,-837.0,0.00027123,2]
[424300991,1780757459000,-565.0,0.00027123,2]
[424300978,1780757459000,-837.0,0.00027123,2]
[424300990,1780757459000,-857.0,0.00027123,2]
[424300981,1780757459000,-837.0,0.00027123,2]
[424300985,1780757459000,-515.0,0.00027123,2]
[424301011,1780757459000,-500.0,0.00027123,2]
[424301012,1780757459000,-565.0,0.00027123,2]
[424301013,1780757459000,-500.0,0.00027123,2]
[424301056,1780757459000,-500.0,0.00027123,2]
[424301053,1780757459000,-500.0,0.00027123,2]
[424301052,1780757459000,-636.18712205,0.00027123,2]
[424301055,1780757459000,-500.0,0.00027123,2]
[424301050,1780757459000,-500.0,0.00027123,2]
[424301054,1780757459000,-500.0,0.00027123,2]
[424301067,1780757459000,-508.70425749,0.00027123,2]
[424301066,1780757459000,-500.0,0.00027123,2]
[424301059,1780757459000,-500.0,0.00027123,2]
[424301069,1780757459000,-500.0,0.00027123,2]
[424301070,1780757459000,-500.0,0.00027123,2]
[424301068,1780757459000,-500.0,0.00027123,2]
[424301071,1780757459000,-500.0,0.00027123,2]
[424301061,1780757459000,-500.0,0.00027123,2]
[424301060,1780757459000,-500.0,0.00027123,2]
[424301064,1780757459000,-500.0,0.00027123,2]
[424301065,1780757459000,-500.0,0.00027123,2]
[424301062,1780757459000,-500.0,0.00027123,2]
[424301063,1780757459000,-500.0,0.00027123,2]
[424301073,1780757459000,-500.0,0.00027123,2]
[424301074,1780757459000,-500.0,0.00027123,2]
[424301076,1780757459000,-500.0,0.00027123,2]
[424301075,1780757459000,-150.0,0.00027123,2]
[424301078,1780757459000,-1346.0,0.00027123,2]
[424301077,1780757459000,-503.41003638,0.00027123,2]
[424301081,1780757459000,-275.41505732,0.000273,30]
[424301079,1780757459000,-1354.0,0.00027123,2]
[424301080,1780757459000,-699.0,0.00027137,2]
[424301082,1780757459000,-500.0,0.0002737,2]
[424301051,1780757459000,-500.0,0.00027123,2]
[424301057,1780757459000,-500.0,0.00027123,2]
[424301072,1780757459000,-500.0,0.00027123,2]
[424301047,1780757459000,-500.0,0.00027123,2]
[424301020,1780757459000,-500.0,0.00027123,2]
[424301058,1780757459000,-500.0,0.00027123,2]
[424301028,1780757459000,-500.0,0.00027123,2]
[424301031,1780757459000,-500.0,0.00027123,2]
[424301032,1780757459000,-396.32957951,0.00027123,2]
[424301030,1780757459000,-565.0,0.00027123,2]
[424301025,1780757459000,-500.0,0.00027123,2]
[424301023,1780757459000,-500.0,0.00027123,2]
[424301026,1780757459000,-510.57684065,0.00027123,2]
[424301022,1780757459000,-565.0,0.00027123,2]
[424301024,1780757459000,-500.0,0.00027123,2]
[424301021,1780757459000,-500.0,0.00027123,2]
[424301027,1780757459000,-500.0,0.00027123,2]
[424301034,1780757459000,-587.36410633,0.00027123,2]
[424301045,1780757459000,-500.0,0.00027123,2]
[424301029,1780757459000,-500.0,0.00027123,2]
[424301049,1780757459000,-500.0,0.00027123,2]
[424301044,1780757459000,-500.0,0.00027123,2]
[424301046,1780757459000,-500.0,0.00027123,2]
[424301042,1780757459000,-278.23959598,0.00027123,2]
[424301040,1780757459000,-500.0,0.00027123,2]
[424301043,1780757459000,-500.0,0.00027123,2]
[424301036,1780757459000,-166.00519298,0.00027123,2]
[424301041,1780757459000,-500.0,0.00027123,2]
[424301035,1780757459000,-150.0,0.00027123,2]
[424301037,1780757459000,-278.44102927,0.00027123,2]
[424301033,1780757459000,-565.0,0.00027123,2]
[424301038,1780757459000,-500.0,0.00027123,2]
[424301039,1780757459000,-500.0,0.00027123,2]
[424301048,1780757459000,-500.0,0.00027123,2]
[424301134,1780757460000,-1022.45,0.00027397,2]
[424301132,1780757460000,-1500.0,0.00027397,2]
[424301125,1780757460000,-1936.0,0.00027397,2]
[424301122,1780757460000,-500.0,0.00027397,2]
[424301124,1780757460000,-500.0,0.00027397,2]
[424301131,1780757460000,-1954.11078681,0.00027397,2]
[424301111,1780757460000,-500.0,0.00027397,2]
[424301117,1780757460000,-500.0,0.00027397,2]
[424301114,1780757460000,-500.0,0.00027397,2]
[424301115,1780757460000,-500.0,0.00027397,2]
[424301116,1780757460000,-1936.0,0.00027397,2]
[424301128,1780757460000,-150.0,0.00027397,2]
[424301123,1780757460000,-1936.0,0.00027397,2]
[424301133,1780757460000,-528.8,0.00027397,2]
[424301137,1780757460000,-3084.94,0.00027397,2]
[424301126,1780757460000,-315.69261864,0.00027397,2]
[424301129,1780757460000,-1936.0,0.00027397,2]
[424301130,1780757460000,-1936.0,0.00027397,2]
[424301144,1780757460000,-151.0,0.00027397,2]
[424301140,1780757460000,-151.0,0.00027397,2]
[424301141,1780757460000,-151.0,0.00027397,2]
[424301142,1780757460000,-151.0,0.00027397,2]
[424301143,1780757460000,-151.0,0.00027397,2]
[424301145,1780757460000,-151.0,0.00027397,2]
[424301147,1780757460000,-151.0,0.00027397,2]
[424301148,1780757460000,-151.0,0.00027397,2]
[424301146,1780757460000,-151.0,0.00027397,2]
[424301139,1780757460000,-151.0,0.00027397,2]
[424301110,1780757460000,-500.0,0.00027397,2]
[424301127,1780757460000,-1936.0,0.00027397,2]
[424301112,1780757460000,-500.0,0.00027397,2]
[424301083,1780757460000,-1000.0,0.0002737,2]
[424301108,1780757460000,-1936.0,0.00027397,2]
[424301093,1780757460000,-500.0,0.00027397,2]
[424301135,1780757460000,-1000.0,0.00027397,20]
[424301094,1780757460000,-1936.0,0.00027397,2]
[424301085,1780757460000,-2000.0,0.00027396,7]
[424301084,1780757460000,-164.0,0.00027392,3]
[424301088,1780757460000,-1936.0,0.00027397,2]
[424301087,1780757460000,-1936.0,0.00027397,2]
[424301086,1780757460000,-191.61999999,0.00027397,2]
[424301092,1780757460000,-1936.0,0.00027397,2]
[424301089,1780757460000,-1936.0,0.00027397,2]
[424301090,1780757460000,-1936.0,0.00027397,2]
[424301091,1780757460000,-500.0,0.00027397,2]
[424301095,1780757460000,-1936.0,0.00027397,2]
[424301096,1780757460000,-500.0,0.00027397,2]
[424301113,1780757460000,-1936.0,0.00027397,2]
[424301097,1780757460000,-1936.0,0.00027397,2]
[424301099,1780757460000,-1936.0,0.00027397,2]
[424301105,1780757460000,-500.0,0.00027397,2]
[424301100,1780757460000,-500.0,0.00027397,2]
[424301102,1780757460000,-1936.0,0.00027397,2]
[424301104,1780757460000,-1936.0,0.00027397,2]
[424301101,1780757460000,-500.0,0.00027397,2]
[424301107,1780757460000,-1936.0,0.00027397,2]
[424301106,1780757460000,-1936.0,0.00027397,2]
[424301103,1780757460000,-500.0,0.00027397,2]
[424301109,1780757460000,-1936.0,0.00027397,2]
[424301118,1780757460000,-500.0,0.00027397,2]
[424301119,1780757460000,-500.0,0.00027397,2]
[424301120,1780757460000,-1936.0,0.00027397,2]
[424301121,1780757460000,-500.0,0.00027397,2]
[424301098,1780757460000,-500.0,0.00027397,2]
[424301138,1780757460000,-151.0,0.00027397,2]
[424301159,1780757460000,-433.109753,0.00027397,2]
[424301150,1780757460000,-151.0,0.00027397,2]
[424301181,1780757460000,-2129.55451,0.00027397,2]
[424301183,1780757460000,-2129.55451,0.00027397,2]
[424301186,1780757460000,-2129.55451,0.00027397,2]
[424301189,1780757460000,-2129.55451,0.00027397,2]
[424301197,1780757460000,-926.031354,0.00027397,2]
[424301198,1780757460000,-926.031354,0.00027397,2]
[424301201,1780757460000,-926.031354,0.00027397,2]
[424301200,1780757460000,-926.031354,0.00027397,2]
[424301199,1780757460000,-926.031354,0.00027397,2]
[424301188,1780757460000,-2129.55451,0.00027397,2]
[424301191,1780757460000,-2129.554518,0.00027397,2]
[424301190,1780757460000,-2129.55451,0.00027397,2]
[424301196,1780757460000,-926.031354,0.00027397,2]
[424301193,1780757460000,-926.031354,0.00027397,2]
[424301182,1780757460000,-2129.55451,0.00027397,2]
[424301194,1780757460000,-926.031354,0.00027397,2]
[424301192,1780757460000,-926.031354,0.00027397,2]
[424301204,1780757460000,-926.031354,0.00027397,2]
[424301202,1780757460000,-926.031354,0.00027397,2]
[424301203,1780757460000,-926.031354,0.00027397,2]
[424301205,1780757460000,-926.031354,0.00027397,2]
[424301207,1780757460000,-926.031354,0.00027397,2]
[424301214,1780757460000,-1094.222631,0.00027397,2]
[424301206,1780757460000,-926.031354,0.00027397,2]
[424301210,1780757460000,-926.031354,0.00027397,2]
[424301212,1780757460000,-1094.222631,0.00027397,2]
[424301213,1780757460000,-1094.222631,0.00027397,2]
[424301209,1780757460000,-926.031354,0.00027397,2]
[424301208,1780757460000,-926.031354,0.00027397,2]
[424301136,1780757460000,-1005.02,0.00027397,2]
[424301195,1780757460000,-926.031354,0.00027397,2]
[424301184,1780757460000,-2129.55451,0.00027397,2]
[424301211,1780757460000,-926.031357,0.00027397,2]
[424301180,1780757460000,-2129.55451,0.00027397,2]
[424301185,1780757460000,-2129.55451,0.00027397,2]
[424301149,1780757460000,-151.0,0.00027397,2]
[424301154,1780757460000,-433.109753,0.00027397,2]
[424301151,1780757460000,-175.427895,0.00027397,2]
[424301160,1780757460000,-433.109753,0.00027397,2]
[424301152,1780757460000,-433.109753,0.00027397,2]
[424301158,1780757460000,-433.109753,0.00027397,2]
[424301157,1780757460000,-433.109753,0.00027397,2]
[424301156,1780757460000,-433.109753,0.00027397,2]
[424301155,1780757460000,-433.109753,0.00027397,2]
[424301173,1780757460000,-2129.55451,0.00027397,2]
[424301172,1780757460000,-2129.55451,0.00027397,2]
[424301174,1780757460000,-2129.55451,0.00027397,2]
[424301171,1780757460000,-433.109751,0.00027397,2]
[424301162,1780757460000,-433.109753,0.00027397,2]
[424301153,1780757460000,-433.109753,0.00027397,2]
[424301170,1780757460000,-433.109753,0.00027397,2]
[424301165,1780757460000,-433.109753,0.00027397,2]
[424301179,1780757460000,-2129.55451,0.00027397,2]
[424301177,1780757460000,-2129.55451,0.00027397,2]
[424301178,1780757460000,-2129.55451,0.00027397,2]
[424301175,1780757460000,-2129.55451,0.00027397,2]
[424301166,1780757460000,-433.109753,0.00027397,2]
[424301176,1780757460000,-2129.55451,0.00027397,2]
[424301168,1780757460000,-433.109753,0.00027397,2]
[424301164,1780757460000,-433.109753,0.00027397,2]
[424301167,1780757460000,-433.109753,0.00027397,2]
[424301187,1780757460000,-2129.55451,0.00027397,2]
[424301161,1780757460000,-433.109753,0.00027397,2]
[424301163,1780757460000,-433.109753,0.00027397,2]
[424301169,1780757460000,-433.109753,0.00027397,2]
[424301244,1780757461000,-4236.104918,0.00027397,2]
[424301257,1780757461000,-4241.46,0.000274,7]
[424301248,1780757461000,-4236.104918,0.00027397,2]
[424301250,1780757461000,-4236.104918,0.00027397,2]
[424301243,1780757461000,-4236.104918,0.00027397,2]
[424301249,1780757461000,-300.0,0.00027397,2]
[424301253,1780757461000,-51202.77,0.00027397,10]
[424301255,1780757461000,-800.0,0.000274,7]
[424301254,1780757461000,-42668.97,0.00027397,10]
[424301251,1780757461000,-4236.104918,0.00027397,2]
[424301252,1780757461000,-4236.104926,0.00027397,2]
[424301247,1780757461000,-4236.104918,0.00027397,2]
[424301259,1780757461000,-5211.77,0.000274,2]
[424301267,1780757461000,-200.0,0.00027425,2]
[424301266,1780757461000,-187.78006524,0.00027425,2]
[424301268,1780757461000,-745.65223615,0.00027425,2]
[424301256,1780757461000,-1908.54,0.000274,7]
[424301258,1780757461000,-1399.73,0.000274,14]
[424301263,1780757461000,-5211.77,0.000274,2]
[424301261,1780757461000,-5211.77,0.000274,2]
[424301262,1780757461000,-5211.77,0.000274,2]
[424301260,1780757461000,-5211.77,0.000274,2]
[424301264,1780757461000,-225.18697532,0.00027425,2]
[424301269,1780757461000,-151.0,0.00027425,2]
[424301245,1780757461000,-4236.104918,0.00027397,2]
[424301265,1780757461000,-301.0006985,0.00027425,2]
[424301246,1780757461000,-4236.104918,0.00027397,2]
[424301220,1780757461000,-1094.222631,0.00027397,2]
[424301241,1780757461000,-4236.104918,0.00027397,2]
[424301272,1780757461000,-200.0,0.00027425,2]
[424301216,1780757461000,-1094.222631,0.00027397,2]
[424301217,1780757461000,-1094.222631,0.00027397,2]
[424301218,1780757461000,-1094.222631,0.00027397,2]
[424301215,1780757461000,-1094.222631,0.00027397,2]
[424301219,1780757461000,-1094.222631,0.00027397,2]
[424301225,1780757461000,-1094.222631,0.00027397,2]
[424301223,1780757461000,-1094.222631,0.00027397,2]
[424301221,1780757461000,-1094.222631,0.00027397,2]
[424301224,1780757461000,-1094.222631,0.00027397,2]
[424301228,1780757461000,-1094.222631,0.00027397,2]
[424301227,1780757461000,-1094.222631,0.00027397,2]
[424301242,1780757461000,-4236.104918,0.00027397,2]
[424301226,1780757461000,-1094.222631,0.00027397,2]
[424301229,1780757461000,-1094.222631,0.00027397,2]
[424301230,1780757461000,-1094.222631,0.00027397,2]
[424301232,1780757461000,-4236.104918,0.00027397,2]
[424301231,1780757461000,-1094.222631,0.00027397,2]
[424301233,1780757461000,-4236.104918,0.00027397,2]
[424301234,1780757461000,-4236.104918,0.00027397,2]
[424301235,1780757461000,-4236.104918,0.00027397,2]
[424301237,1780757461000,-4236.104918,0.00027397,2]
[424301238,1780757461000,-4236.104918,0.00027397,2]
[424301236,1780757461000,-4236.104918,0.00027397,2]
[424301239,1780757461000,-4236.104918,0.00027397,2]
[424301240,1780757461000,-4236.104918,0.00027397,2]
[424301222,1780757461000,-1094.222631,0.00027397,2]
[424301270,1780757461000,-500.0,0.00027425,2]
[424301278,1780757461000,-3041.2,0.0002764,7]
[424301273,1780757461000,-225.18697532,0.00027425,2]
[424301305,1780757461000,-425.11845634,0.00027676,2]
[424301307,1780757461000,-180.80321223,0.00027676,2]
[424301315,1780757461000,-198.73331086,0.00027677,2]
[424301316,1780757461000,-170.23456585,0.00027677,2]
[424301317,1780757461000,-202.49290182,0.00027677,2]
[424301318,1780757461000,-184.09557416,0.00027677,2]
[424301306,1780757461000,-169.79965962,0.00027676,2]
[424301308,1780757461000,-155.1837389,0.00027676,2]
[424301311,1780757461000,-181.84512608,0.00027676,2]
[424301314,1780757461000,-184.23545393,0.00027677,2]
[424301313,1780757461000,-153.85396636,0.00027677,2]
[424301309,1780757461000,-158.09150112,0.00027676,2]
[424301310,1780757461000,-153.91655154,0.00027676,2]
[424301320,1780757461000,-183.67418236,0.00027677,2]
[424301328,1780757461000,-165.08821115,0.00027709,2]
[424301322,1780757461000,-188.56290069,0.00027677,2]
[424301321,1780757461000,-175.69507317,0.00027677,2]
[424301319,1780757461000,-166.86452207,0.00027677,2]
[424301326,1780757461000,-168.45655915,0.00027709,2]
[424301324,1780757461000,-217.15233878,0.00027698,2]
[424301325,1780757461000,-160.0,0.00027698,2]
[424301329,1780757461000,-175.26320409,0.00027709,2]
[424301323,1780757461000,-156.587,0.00027698,2]
[424301327,1780757461000,-205.42053569,0.00027709,2]
[424301271,1780757461000,-225.18697532,0.00027425,2]
[424301303,1780757461000,-164.85861643,0.00027676,2]
[424301304,1780757461000,-233.03479887,0.00027676,2]
[424301312,1780757461000,-163.85940282,0.00027677,2]
[424301302,1780757461000,-342.15101267,0.00027676,2]
[424301280,1780757461000,-153.64538288,0.0002767,2]
[424301301,1780757461000,-183.07618996,0.00027676,2]
[424301277,1780757461000,-500.0,0.000275,7]
[424301282,1780757461000,-699.0,0.00027671,2]
[424301275,1780757461000,-1536.04360648,0.00027425,2]
[424301276,1780757461000,-204.77677487,0.000275,2]
[424301274,1780757461000,-10272.10520532,0.00027425,2]
[424301279,1780757461000,-204.8326663,0.0002767,2]
[424301284,1780757461000,-283.74562077,0.00027676,2]
[424301293,1780757461000,-170.10607958,0.00027676,2]
[424301288,1780757461000,-177.62004505,0.00027676,2]
[424301291,1780757461000,-187.23566004,0.00027676,2]
[424301294,1780757461000,-179.3301188,0.00027676,2]
[424301281,1780757461000,-176.33731564,0.0002767,2]
[424301296,1780757461000,-156.51797784,0.00027676,2]
[424301283,1780757461000,-191.61999999,0.00027671,2]
[424301290,1780757461000,-171.94236389,0.00027676,2]
[424301295,1780757461000,-158.63031103,0.00027676,2]
[424301285,1780757461000,-213.18435203,0.00027676,2]
[424301286,1780757461000,-158.38287543,0.00027676,2]
[424301287,1780757461000,-152.94886357,0.00027676,2]
[424301292,1780757461000,-170.48813954,0.00027676,2]
[424301298,1780757461000,-155.5985547,0.00027676,2]
[424301300,1780757461000,-151.6552729,0.00027676,2]
[424301289,1780757461000,-153.03593243,0.00027676,2]
[424301297,1780757461000,-455.89813126,0.00027676,2]
[424301299,1780757461000,-399.34565159,0.00027676,2]
[424301370,1780757462000,-473.81928112,0.00028394,2]
[424301372,1780757462000,-2308.0,0.00028434,5]
[424301367,1780757462000,-4204.8,0.00028267,2]
[424301371,1780757462000,-211.89454194,0.00028415,2]
[424301364,1780757462000,-152.0,0.00028063,4]
[424301363,1780757462000,-4857.0,0.00028021,2]
[424301368,1780757462000,-1908.54,0.000283,7]
[424301362,1780757462000,-215.80795776,0.00028,10]
[424301360,1780757462000,-600.0,0.00028,2]
[424301361,1780757462000,-160.0,0.00028,10]
[424301373,1780757462000,-3601.0,0.00028434,5]
[424301369,1780757462000,-1399.73,0.000283,14]
[424301375,1780757462000,-300.0,0.00028493,14]
[424301386,1780757462000,-242.15909246,0.00028521,2]
[424301376,1780757462000,-150.0,0.00028493,2]
[424301379,1780757462000,-242.15909246,0.00028521,2]
[424301377,1780757462000,-168.33,0.00028493,2]
[424301378,1780757462000,-4241.46,0.000285,7]
[424301380,1780757462000,-323.68682015,0.00028521,2]
[424301381,1780757462000,-201.93286098,0.00028521,2]
[424301382,1780757462000,-200.0,0.00028521,2]
[424301383,1780757462000,-801.85129954,0.00028521,2]
[424301384,1780757462000,-151.0,0.00028521,2]
[424301388,1780757462000,-242.15909246,0.00028521,2]
[424301389,1780757462000,-11046.30350254,0.00028521,2]
[424301385,1780757462000,-500.0,0.00028521,2]
[424301366,1780757462000,-699.0,0.00028205,3]
[424301374,1780757462000,-164.0,0.00028468,3]
[424301358,1780757462000,-160.0,0.00028,2]
[424301332,1780757462000,-182.7949947,0.00027738,2]
[424301359,1780757462000,-325.0,0.00028,2]
[424301330,1780757462000,-153.11752325,0.00027709,2]
[424301331,1780757462000,-183.65734305,0.00027738,2]
[424301333,1780757462000,-1908.54,0.000278,7]
[424301334,1780757462000,-1399.73,0.000278,14]
[424301335,1780757462000,-200.0,0.00027827,2]
[424301343,1780757462000,-194.72792766,0.00027973,2]
[424301336,1780757462000,-4241.46,0.000279,7]
[424301342,1780757462000,-312.13772435,0.00027973,2]
[424301339,1780757462000,-167.96129714,0.00027938,2]
[424301338,1780757462000,-151.0,0.00027924,4]
[424301337,1780757462000,-165.3627542,0.0002791,2]
[424301390,1780757462000,-1651.81367706,0.00028521,2]
[424301340,1780757462000,-191.62,0.00027945,2]
[424301341,1780757462000,-233.5188934,0.00027973,2]
[424301345,1780757462000,-773.24136889,0.00027973,2]
[424301347,1780757462000,-500.0,0.00027973,2]
[424301350,1780757462000,-233.5188934,0.00027973,2]
[424301346,1780757462000,-151.0,0.00027973,2]
[424301349,1780757462000,-200.0,0.00027973,2]
[424301348,1780757462000,-233.5188934,0.00027973,2]
[424301356,1780757462000,-318.55449432,0.00028,30]
[424301354,1780757462000,-1352.79582961,0.00028,2]
[424301355,1780757462000,-51757.05798714,0.00028,2]
[424301352,1780757462000,-1592.87721992,0.00027973,2]
[424301357,1780757462000,-1148.35266817,0.00028,60]
[424301351,1780757462000,-10652.17309792,0.00027973,2]
[424301353,1780757462000,-500.0,0.00027995,2]
[424301365,1780757462000,-473.81928112,0.00028144,2]
[424301387,1780757462000,-200.0,0.00028521,2]
[424301344,1780757462000,-200.0,0.00027973,2]